Workbook

Sheet Taul1
A1: Nimi | B1: NimiJaSyntymä | C1: Pisteet yht. | D1: Piste KA / juostu kilpailu | E1: Kilpailu | F1: Kilpailija | G1: Luokka | H1: Pisteet | I1: Johtajana | J1: Kaikki päivät | K1: Kilpailu | L1: Kilpailija | M1: Luokka | N1: Pisteet | O1: Johtajana | P1: Kaikki päivät | Q1: Syntymäaika | R1: Sukupuoli | S1: Paino kg | T1: Rotu | U1: Sukutaulu | W1: Lisätiedot
A2: Olga | B2: Olga43905 | C2: 395.6388351 | D2: =AVERAGE(IF(H$1:PP$1="Pisteet",H2:PP2)) -> 197.8194176 | E2: Jämin Syyskisa | F2: Sonja Heinonen | G2: DR8 | H2: 194.4111232 | I2: Kyllä | J2: Kyllä | K2: Jämin Syys-SM | L2: Pasi Heinonen | M2: DR8 | N2: 201.2277119 | O2: Kyllä | P2: Kyllä | Q2: 2020-03-15 | R2: narttu | S2: 23 | T2: x | U2: =HYPERLINK(V2,"Sukutaulu") -> Sukutaulu | V2: https://www.trekkhundregisteret.no/dog/65956-olga-sonja-pasi-heinonen/ | W2: Näytä tiedot
A3: Sauli | B3: Sauli44798 | C3: 395.6388351 | D3: =AVERAGE(IF(H$1:PP$1="Pisteet",H3:PP3)) -> 197.8194176 | E3: Jämin Syyskisa | F3: Sonja Heinonen | G3: DR8 | H3: 194.4111232 | I3: Kyllä | J3: Kyllä | K3: Jämin Syys-SM | L3: Pasi Heinonen | M3: DR8 | N3: 201.2277119 | O3: Kyllä | P3: Kyllä | Q3: 2022-08-25 | R3: uros | S3: 24 | T3: x | U3: Sukutaulu | V3: https://www.trekkhundregisteret.no/dog/65961-sauli-sonja-pasi-heinonen/ | W3: Näytä tiedot
A4: Sipsi | B4: Sipsi44798 | C4: 395.6388351 | D4: =AVERAGE(IF(H$1:PP$1="Pisteet",H4:PP4)) -> 197.8194176 | E4: Jämin Syyskisa | F4: Sonja Heinonen | G4: DR8 | H4: 194.4111232 | I4: Ei | J4: Kyllä | K4: Jämin Syys-SM | L4: Pasi Heinonen | M4: DR8 | N4: 201.2277119 | O4: Ei | P4: Kyllä | Q4: 2022-08-25 | R4: narttu | S4: 22 | T4: x | U4: Sukutaulu | V4: https://www.trekkhundregisteret.no/dog/65962-sipsi-sonja-pasi-heinonen/ | W4: Näytä tiedot
A5: Taimi | B5: Taimi45293 | C5: 395.6388351 | D5: =AVERAGE(IF(H$1:PP$1="Pisteet",H5:PP5)) -> 197.8194176 | E5: Jämin Syyskisa | F5: Sonja Heinonen | G5: DR8 | H5: 194.4111232 | I5: Ei | J5: Kyllä | K5: Jämin Syys-SM | L5: Pasi Heinonen | M5: DR8 | N5: 201.2277119 | O5: Ei | P5: Kyllä | Q5: 2024-01-02 | R5: narttu | S5: 24 | T5: x | U5: Sukutaulu | V5: https://www.trekkhundregisteret.no/dog/65970-taimi-sonja-pasi-heinonen/ | W5: Näytä tiedot
A6: Tuksu | B6: Tuksu45293 | C6: 395.6388351 | D6: =AVERAGE(IF(H$1:PP$1="Pisteet",H6:PP6)) -> 197.8194176 | E6: Jämin Syyskisa | F6: Sonja Heinonen | G6: DR8 | H6: 194.4111232 | I6: Ei | J6: Kyllä | K6: Jämin Syys-SM | L6: Pasi Heinonen | M6: DR8 | N6: 201.2277119 | O6: Ei | P6: Kyllä | Q6: 2024-01-02 | R6: narttu | S6: 24 | T6: x | U6: Sukutaulu | V6: https://www.trekkhundregisteret.no/dog/65969-tuksu-sonja-pasi-heinonen/ | W6: Näytä tiedot
A7: Ahto | B7: Ahto44390 | C7: 394.9543864 | D7: =AVERAGE(IF(H$1:PP$1="Pisteet",H7:PP7)) -> 197.4771932 | E7: Jämin Syyskisa | F7: Ville Rakkolainen | G7: DR8 | H7: 196.7684641 | I7: Ei | J7: Kyllä | K7: Jämin Syys-SM | L7: Ville Rakkolainen | M7: DR8 | N7: 198.1859224 | O7: Ei | P7: Kyllä | Q7: 2021-07-13 | R7: uros | S7: 29 | T7: x | U7: Sukutaulu | V7: https://www.trekkhundregisteret.no/dog/68157-ahto-joonas-elena-kallio/ | W7: Näytä tiedot
A8: Fun Racing Origo | B8: Fun Racing Origo44003 | C8: 394.9543864 | D8: =AVERAGE(IF(H$1:PP$1="Pisteet",H8:PP8)) -> 197.4771932 | E8: Jämin Syyskisa | F8: Ville Rakkolainen | G8: DR8 | H8: 196.7684641 | I8: Kyllä | J8: Kyllä | K8: Jämin Syys-SM | L8: Ville Rakkolainen | M8: DR8 | N8: 198.1859224 | O8: Kyllä | P8: Kyllä | Q8: 2020-06-21 | R8: narttu | S8: 23 | T8: x | U8: Sukutaulu | V8: https://www.trekkhundregisteret.no/dog/52643-fun-racing-origo-hege-ingebrgtsen/ | W8: Näytä tiedot
A9: Nuppu | B9: Nuppu45095 | C9: 394.9543864 | D9: =AVERAGE(IF(H$1:PP$1="Pisteet",H9:PP9)) -> 197.4771932 | E9: Jämin Syyskisa | F9: Ville Rakkolainen | G9: DR8 | H9: 196.7684641 | I9: Kyllä | J9: Kyllä | K9: Jämin Syys-SM | L9: Ville Rakkolainen | M9: DR8 | N9: 198.1859224 | O9: Kyllä | P9: Kyllä | Q9: 2023-06-18 | R9: narttu | S9: 23 | T9: x | U9: Sukutaulu | V9: https://www.trekkhundregisteret.no/dog/68159-nuppu-joonas-elena-kallio/ | W9: Näytä tiedot
A10: Pate | B10: Pate45095 | C10: 394.9543864 | D10: =AVERAGE(IF(H$1:PP$1="Pisteet",H10:PP10)) -> 197.4771932 | E10: Jämin Syyskisa | F10: Ville Rakkolainen | G10: DR8 | H10: 196.7684641 | I10: Ei | J10: Kyllä | K10: Jämin Syys-SM | L10: Ville Rakkolainen | M10: DR8 | N10: 198.1859224 | O10: Ei | P10: Kyllä | Q10: 2023-06-18 | R10: uros | S10: 29 | T10: x | U10: Sukutaulu | V10: https://www.trekkhundregisteret.no/dog/68160-pate-joonas-elena-kallio/ | W10: Näytä tiedot
A11: Powerline Olli | B11: Powerline Olli43905 | C11: 394.9543864 | D11: =AVERAGE(IF(H$1:PP$1="Pisteet",H11:PP11)) -> 197.4771932 | E11: Jämin Syyskisa | F11: Ville Rakkolainen | G11: DR8 | H11: 196.7684641 | I11: Ei | J11: Kyllä | K11: Jämin Syys-SM | L11: Ville Rakkolainen | M11: DR8 | N11: 198.1859224 | O11: Ei | P11: Kyllä | Q11: 2020-03-15 | R11: uros | S11: 26 | T11: x | U11: Sukutaulu | V11: https://www.trekkhundregisteret.no/dog/68158-olli-sonja-pasi-heinonen/ | W11: Näytä tiedot
A12: Powerline Samppa | B12: Powerline Samppa44798 | C12: 394.9543864 | D12: =AVERAGE(IF(H$1:PP$1="Pisteet",H12:PP12)) -> 197.4771932 | E12: Jämin Syyskisa | F12: Ville Rakkolainen | G12: DR8 | H12: 196.7684641 | I12: Ei | J12: Kyllä | K12: Jämin Syys-SM | L12: Ville Rakkolainen | M12: DR8 | N12: 198.1859224 | O12: Ei | P12: Kyllä | Q12: 2022-08-25 | R12: uros | S12: 26 | T12: x | U12: Sukutaulu | V12: https://www.trekkhundregisteret.no/dog/67497-samppa-sonja-pasi-heinonen/ | W12: Näytä tiedot
A13: Rane | B13: Rane45114 | C13: 394.9543864 | D13: =AVERAGE(IF(H$1:PP$1="Pisteet",H13:PP13)) -> 197.4771932 | E13: Jämin Syyskisa | F13: Ville Rakkolainen | G13: DR8 | H13: 196.7684641 | I13: Ei | J13: Kyllä | K13: Jämin Syys-SM | L13: Ville Rakkolainen | M13: DR8 | N13: 198.1859224 | O13: Ei | P13: Kyllä | Q13: 2023-07-07 | R13: uros | S13: 29 | T13: x | U13: Sukutaulu | V13: https://www.trekkhundregisteret.no/dog/68161-rane-nina-teegen/ | W13: Näytä tiedot
A14: HappyHound Remus | B14: HappyHound Remus44377 | C14: 378.802729 | D14: =AVERAGE(IF(H$1:PP$1="Pisteet",H14:PP14)) -> 189.4013645 | E14: Jämin Syyskisa | F14: Tiina Hakala | G14: DR4 | H14: 186.6928328 | I14: Kyllä | J14: Kyllä | K14: Jämin Syys-SM | L14: Tiina Hakala | M14: DR4 | N14: 192.1098962 | O14: Kyllä | P14: Kyllä | Q14: 2021-06-30 | R14: uros | S14: 33 | T14: x | U14: Sukutaulu | V14: https://www.trekkhundregisteret.no/dog/56010-happy-hound-remus-tiina-hakala/ | W14: Näytä tiedot
A15: HappyHound Romulus | B15: HappyHound Romulus44377 | C15: 378.802729 | D15: =AVERAGE(IF(H$1:PP$1="Pisteet",H15:PP15)) -> 189.4013645 | E15: Jämin Syyskisa | F15: Tiina Hakala | G15: DR4 | H15: 186.6928328 | I15: Ei | J15: Kyllä | K15: Jämin Syys-SM | L15: Tiina Hakala | M15: DR4 | N15: 192.1098962 | O15: Ei | P15: Kyllä | Q15: 2021-06-30 | R15: uros | S15: 35 | T15: x | U15: Sukutaulu | V15: https://www.trekkhundregisteret.no/dog/56009-happy-hound-romulus-tiina-hakala/ | W15: Näytä tiedot
A16: HappyHound Rosvo | B16: HappyHound Rosvo44377 | C16: 378.802729 | D16: =AVERAGE(IF(H$1:PP$1="Pisteet",H16:PP16)) -> 189.4013645 | E16: Jämin Syyskisa | F16: Tiina Hakala | G16: DR4 | H16: 186.6928328 | I16: Kyllä | J16: Kyllä | K16: Jämin Syys-SM | L16: Tiina Hakala | M16: DR4 | N16: 192.1098962 | O16: Kyllä | P16: Kyllä | Q16: 2021-06-30 | R16: uros | S16: 32 | T16: x | U16: Sukutaulu | V16: https://www.trekkhundregisteret.no/dog/56007-happy-hound-rosvo-tiina-hakala/ | W16: Näytä tiedot
A17: Albus | B17: Albus44390 | C17: 362.809573 | D17: =AVERAGE(IF(H$1:PP$1="Pisteet",H17:PP17)) -> 181.4047865 | E17: Jämin Syyskisa | F17: Michela Leppänen | G17: DS2 | H17: 161.5818611 | I17: Kyllä | J17: Kyllä | K17: Jämin Syys-SM | L17: Pasi Heinonen | M17: DR8 | N17: 201.2277119 | O17: Ei | P17: Kyllä | Q17: 2021-07-13 | R17: uros | S17: 24 | T17: x | U17: Sukutaulu | V17: https://www.trekkhundregisteret.no/dog/65965-albus-joonas-elena-kallio/ | W17: Näytä tiedot
A18: Soma | B18: Soma44798 | C18: 362.809573 | D18: =AVERAGE(IF(H$1:PP$1="Pisteet",H18:PP18)) -> 181.4047865 | E18: Jämin Syyskisa | F18: Michela Leppänen | G18: DS2 | H18: 161.5818611 | I18: Kyllä | J18: Kyllä | K18: Jämin Syys-SM | L18: Pasi Heinonen | M18: DR8 | N18: 201.2277119 | O18: Ei | P18: Kyllä | Q18: 2022-08-25 | R18: narttu | S18: 23 | T18: x | U18: Sukutaulu | V18: https://www.trekkhundregisteret.no/dog/67530-soma-sonja-pasi-heinonen/ | W18: Näytä tiedot
A19: Hietasen Taika | B19: Hietasen Taika45017 | C19: 346.4926907 | D19: =AVERAGE(IF(H$1:PP$1="Pisteet",H19:PP19)) -> 173.2463453 | E19: Jämin Syyskisa | F19: Milli Rakkolainen | G19: DS1Y/J | H19: 148.3067683 | I19: Kyllä | J19: Kyllä | K19: Jämin Syys-SM | L19: Ville Rakkolainen | M19: DR8 | N19: 198.1859224 | O19: Ei | P19: Kyllä | Q19: 2023-04-01 | R19: narttu | S19: 29 | T19: x | U19: Sukutaulu | V19: https://www.trekkhundregisteret.no/dog/60921-hietasen-taika-jutta-tuukka-turkka/ | W19: Näytä tiedot
A20: Sonsonin Aikamoinen Eppu | B20: Sonsonin Aikamoinen Eppu43668 | C20: 334.6267952 | D20: =AVERAGE(IF(H$1:PP$1="Pisteet",H20:PP20)) -> 167.3133976 | E20: Jämin Syyskisa | F20: Johanna Pelli | G20: DR8 | H20: 169.4262975 | I20: Ei | J20: Kyllä | K20: Jämin Syys-SM | L20: Lauri Kivioja | M20: DR8 | N20: 165.2004976 | O20: Ei | P20: Kyllä | Q20: 2019-07-22 | R20: uros | S20: 26 | T20: siperianhusky | U20: Sukutaulu | V20: https://jalostus.kennelliitto.fi/frmKoira.aspx?RekNo=FI45124%2F19&R=270 | W20: Näytä tiedot
A21: Sonsonin Aikamoinen Möykky | B21: Sonsonin Aikamoinen Möykky43668 | C21: 334.6267952 | D21: =AVERAGE(IF(H$1:PP$1="Pisteet",H21:PP21)) -> 167.3133976 | E21: Jämin Syyskisa | F21: Johanna Pelli | G21: DR8 | H21: 169.4262975 | I21: Kyllä | J21: Kyllä | K21: Jämin Syys-SM | L21: Lauri Kivioja | M21: DR8 | N21: 165.2004976 | O21: Kyllä | P21: Kyllä | Q21: 2019-07-22 | R21: uros | S21: 26.5 | T21: siperianhusky | U21: Sukutaulu | V21: https://jalostus.kennelliitto.fi/frmKoira.aspx?RekNo=FI45125%2F19&R=270 | W21: Näytä tiedot
A22: Pinkkisan's Funny Hachiko | B22: Pinkkisan's Funny Hachiko 43350 | C22: 334.6267952 | D22: =AVERAGE(IF(H$1:PP$1="Pisteet",H22:PP22)) -> 167.3133976 | E22: Jämin Syyskisa | F22: Johanna Pelli | G22: DR8 | H22: 169.4262975 | I22: Ei | J22: Kyllä | K22: Jämin Syys-SM | L22: Lauri Kivioja | M22: DR8 | N22: 165.2004976 | O22: Ei | P22: Kyllä | Q22: 2018-09-07 | R22: uros | S22: 23 | T22: siperianhusky | U22: Sukutaulu | V22: https://jalostus.kennelliitto.fi/frmKoira.aspx?RekNo=FI58292/20&R=270 | W22: Näytä tiedot
A23: McAhon Vandaali | B23: McAhon Vandaali45269 | C23: 334.6267952 | D23: =AVERAGE(IF(H$1:PP$1="Pisteet",H23:PP23)) -> 167.3133976 | E23: Jämin Syyskisa | F23: Johanna Pelli | G23: DR8 | H23: 169.4262975 | I23: Ei | J23: Kyllä | K23: Jämin Syys-SM | L23: Lauri Kivioja | M23: DR8 | N23: 165.2004976 | O23: Ei | P23: Kyllä | Q23: 2023-12-09 | R23: narttu | S23: 21 | T23: siperianhusky | U23: Sukutaulu | V23: https://jalostus.kennelliitto.fi/frmKoira.aspx?RekNo=FI12756/24&R=270 | W23: Näytä tiedot
A24: Hippi (Jippi23) | B24: Hippi (Jippi23)45095 | C24: 297.7154575 | D24: =AVERAGE(IF(H$1:PP$1="Pisteet",H24:PP24)) -> 148.8577288 | E24: Jämin Syyskisa | F24: Sonja Heinonen | G24: DR8 | H24: 194.4111232 | I24: Ei | J24: Ei | K24: Jämin Syys-SM | L24: Pasi Heinonen | M24: DR8 | N24: 103.3043343 | O24: Ei | P24: Ei | Q24: 2023-06-18 | R24: narttu | S24: 22 | T24: x | U24: Sukutaulu | V24: https://www.trekkhundregisteret.no/dog/65964-jippi23-joonas-elena-kallio/ | W24: Näytä tiedot
A25: Huruhukan Alwari Tuohitorvi | B25: Huruhukan Alwari Tuohitorvi 44283 | C25: 280.1116896 | D25: =AVERAGE(IF(H$1:PP$1="Pisteet",H25:PP25)) -> 140.0558448 | E25: Jämin Syyskisa | F25: Josefiina Santala | G25: DR4 | H25: 136.4493118 | I25: Kyllä | J25: Kyllä | K25: Jämin Syys-SM | L25: Josefiina Santala | M25: DR4 | N25: 143.6623778 | O25: Kyllä | P25: Kyllä | Q25: 2021-03-28 | R25: uros | S25: 20.5 | T25: siperianhusky | U25: Sukutaulu | V25: https://jalostus.kennelliitto.fi/frmKoira.aspx?RekNo=FI26353/21&R=270 | W25: Näytä tiedot
A26: Loitsuttu Anyon | B26: Loitsuttu Anyon 44771 | C26: 280.1116896 | D26: =AVERAGE(IF(H$1:PP$1="Pisteet",H26:PP26)) -> 140.0558448 | E26: Jämin Syyskisa | F26: Josefiina Santala | G26: DR4 | H26: 136.4493118 | I26: Ei | J26: Kyllä | K26: Jämin Syys-SM | L26: Josefiina Santala | M26: DR4 | N26: 143.6623778 | O26: Ei | P26: Kyllä | Q26: 2022-07-29 | R26: uros | S26: 21.5 | T26: siperianhusky | U26: Sukutaulu | V26: https://jalostus.kennelliitto.fi/frmKoira.aspx?RekNo=FI53004/22&R=270 | W26: Näytä tiedot
A27: Lumikiisan Taitava Narnia | B27: Lumikiisan Taitava Narnia 45134 | C27: 280.1116896 | D27: =AVERAGE(IF(H$1:PP$1="Pisteet",H27:PP27)) -> 140.0558448 | E27: Jämin Syyskisa | F27: Josefiina Santala | G27: DR4 | H27: 136.4493118 | I27: Ei | J27: Kyllä | K27: Jämin Syys-SM | L27: Josefiina Santala | M27: DR4 | N27: 143.6623778 | O27: Ei | P27: Kyllä | Q27: 2023-07-27 | R27: uros | S27: 27 | T27: siperianhusky | U27: Sukutaulu | V27: https://jalostus.kennelliitto.fi/frmKoira.aspx?RekNo=FI46645/23&R=270 | W27: Näytä tiedot
A28: Lumikiisan Taitava Titania | B28: Lumikiisan Taitava Titania 45134 | C28: 280.1116896 | D28: =AVERAGE(IF(H$1:PP$1="Pisteet",H28:PP28)) -> 140.0558448 | E28: Jämin Syyskisa | F28: Josefiina Santala | G28: DR4 | H28: 136.4493118 | I28: Kyllä | J28: Kyllä | K28: Jämin Syys-SM | L28: Josefiina Santala | M28: DR4 | N28: 143.6623778 | O28: Kyllä | P28: Kyllä | Q28: 2023-07-27 | R28: uros | S28: 24 | T28: siperianhusky | U28: Sukutaulu | V28: https://jalostus.kennelliitto.fi/frmKoira.aspx?RekNo=FI46648/23&R=270 | W28: Näytä tiedot
A29: Villiviimas Fantastinen Nala | B29: Villiviimas Fantastinen Nala44352 | C29: 259.6458308 | D29: =AVERAGE(IF(H$1:PP$1="Pisteet",H29:PP29)) -> 129.8229154 | E29: Jämin Syyskisa | F29: Camilla Backman-Koskinen | G29: DS2 | H29: 124.6910999 | I29: Kyllä | J29: Kyllä | K29: Jämin Syys-SM | L29: Camilla Backman-Koskinen | M29: DS2 | N29: 134.9547309 | O29: Kyllä | P29: Kyllä | Q29: 2021-06-05 | R29: narttu | S29: 21 | T29: siperianhusky | U29: Sukutaulu | V29: https://jalostus.kennelliitto.fi/frmKoira.aspx?RekNo=FI59166%2F21&R=270 | W29: Näytä tiedot
A30: Pinkkisan's Agent Triple X | B30: Pinkkisan's Agent Triple X44104 | C30: 257.5680394 | D30: =AVERAGE(IF(H$1:PP$1="Pisteet",H30:PP30)) -> 128.7840197 | E30: Jämin Syyskisa | F30: Johanna Pelli | G30: DR8 | H30: 169.4262975 | I30: Kyllä | J30: Kyllä | K30: Jämin Syys-SM | L30: Lauri Kivioja | M30: DR8 | N30: 88.14174186 | O30: Kyllä | P30: Ei | Q30: 2020-09-30 | R30: narttu | S30: 19 | T30: siperianhusky | U30: Sukutaulu | V30: https://jalostus.kennelliitto.fi/frmKoira.aspx?RekNo=FI58252/20&R=270 | W30: Näytä tiedot
A31: Fun Racing Niitti | B31: Fun Racing Niitti43964 | C31: 196.7684641 | D31: =AVERAGE(IF(H$1:PP$1="Pisteet",H31:PP31)) -> 98.38423204 | E31: Jämin Syyskisa | F31: Ville Rakkolainen | G31: DR8 | H31: 196.7684641 | I31: Ei | J31: Kyllä | Q31: 2020-05-13 | R31: narttu | S31: 23 | T31: x | U31: Sukutaulu | V31: https://www.trekkhundregisteret.no/dog/52226-fun-racing-niitti-hege-ingebrgtsen/ | W31: Näytä tiedot
A32: HappyHound Rinsessa | B32: HappyHound Rinsessa44377 | C32: 192.1098962 | D32: =AVERAGE(IF(H$1:PP$1="Pisteet",H32:PP32)) -> 96.0549481 | K32: Jämin Syys-SM | L32: Tiina Hakala | M32: DR4 | N32: 192.1098962 | O32: Ei | P32: Kyllä | Q32: 2021-06-30 | R32: narttu | S32: 30 | T32: x | U32: Sukutaulu | V32: https://www.trekkhundregisteret.no/dog/56011-happy-hound-rinsessa-tiina-hakala/ | W32: Näytä tiedot
A33: Cela | B33: Cela43565 | C33: 182.6922713 | D33: =AVERAGE(IF(H$1:PP$1="Pisteet",H33:PP33)) -> 91.34613567 | K33: Jämin Syys-SM | L33: Pekka Niemi | M33: DS2 | N33: 182.6922713 | O33: Kyllä | P33: Kyllä | Q33: 2019-04-10 | R33: narttu | S33: 25 | T33: lyhytkarvainen saksanseisoja | U33: Sukutaulu | V33: https://www.trekkhundregisteret.no/dog/66978-ciri-cirin-dalveniehku-ciri-cirin/ | W33: Näytä tiedot
A34: Mezcal | B34: Mezcal44670 | C34: 182.6922713 | D34: =AVERAGE(IF(H$1:PP$1="Pisteet",H34:PP34)) -> 91.34613567 | K34: Jämin Syys-SM | L34: Pekka Niemi | M34: DS2 | N34: 182.6922713 | O34: Kyllä | P34: Kyllä | Q34: 2022-04-19 | R34: narttu | S34: 28 | T34: x | U34: =HYPERLINK(V34,"Sukutaulu") -> Sukutaulu | V34: https://www.trekkhundregisteret.no/dog/58133-mezcal-veronika-navratilova-and-vaclav-vancura/ | W34: Näytä tiedot
A35: Termagant's Eclipse | B35: Termagant's Eclipse 45223 | C35: 178.1004208 | D35: =AVERAGE(IF(H$1:PP$1="Pisteet",H35:PP35)) -> 89.05021042 | K35: Jämin Syys-SM | L35: Janica Kindt | M35: DR4 | N35: 178.1004208 | O35: Ei | P35: Kyllä | Q35: 2023-10-24 | R35: uros | S35: 35 | T35: lyhytkarvainen saksanseisoja | U35: Sukutaulu | V35: https://jalostus.kennelliitto.fi/frmKoira.aspx?RekNo=FI51469%2F23&R=119 | W35: Näytä tiedot
A36: Jehu | B36: Jehu43910 | C36: 166.1169847 | D36: =AVERAGE(IF(H$1:PP$1="Pisteet",H36:PP36)) -> 83.05849236 | K36: Jämin Syys-SM | L36: Tuomas Notko | M36: DS2 | N36: 166.1169847 | O36: Kyllä | P36: Kyllä | Q36: 2020-03-20 | R36: uros | S36: 31 | T36: x | U36: Sukutaulu | V36: https://www.trekkhundregisteret.no/dog/55386-jehu-jenni-kreivi/ | W36: Näytä tiedot
A37: Liekki (Salama) | B37: Liekki (Salama) 42222 | C37: 166.1169847 | D37: =AVERAGE(IF(H$1:PP$1="Pisteet",H37:PP37)) -> 83.05849236 | K37: Jämin Syys-SM | L37: Tuomas Notko | M37: DS2 | N37: 166.1169847 | O37: Kyllä | P37: Kyllä | Q37: 2015-08-06 | R37: uros | S37: 25 | T37: x | U37: Sukutaulu | V37: https://www.trekkhundregisteret.no/dog/43889-thedogriders-yur-salama-samuli-nissinen/ | W37: Näytä tiedot
A38: ALKUVOIMAN HARLEY QUINN | B38: ALKUVOIMAN HARLEY QUINN44721 | C38: 160.8333368 | D38: =AVERAGE(IF(H$1:PP$1="Pisteet",H38:PP38)) -> 80.41666841 | E38: Jämin Syyskisa | F38: Milla Gröndahl | G38: DR4 | H38: 160.8333368 | I38: Kyllä | J38: Kyllä | Q38: 2022-06-09 | R38: narttu | S38: 17 | T38: siperianhusky | U38: Sukutaulu | V38: https://jalostus.kennelliitto.fi/frmKoira.aspx?RekNo=FI41523%2F22&R=270 | W38: Näytä tiedot
A39: ALKUVOIMAN THE JOKER | B39: ALKUVOIMAN THE JOKER44721 | C39: 160.8333368 | D39: =AVERAGE(IF(H$1:PP$1="Pisteet",H39:PP39)) -> 80.41666841 | E39: Jämin Syyskisa | F39: Milla Gröndahl | G39: DR4 | H39: 160.8333368 | I39: Kyllä | J39: Kyllä | Q39: 2022-06-09 | R39: uros | S39: 26 | T39: siperianhusky | U39: Sukutaulu | V39: https://jalostus.kennelliitto.fi/frmKoira.aspx?RekNo=FI41524%2F22&R=270 | W39: Näytä tiedot
A40: ALKUVOIMAN THE RIDDLER | B40: ALKUVOIMAN THE RIDDLER44721 | C40: 160.8333368 | D40: =AVERAGE(IF(H$1:PP$1="Pisteet",H40:PP40)) -> 80.41666841 | E40: Jämin Syyskisa | F40: Milla Gröndahl | G40: DR4 | H40: 160.8333368 | I40: Ei | J40: Kyllä | Q40: 2022-06-09 | R40: uros | S40: 27 | T40: siperianhusky | U40: Sukutaulu | V40: https://jalostus.kennelliitto.fi/frmKoira.aspx?RekNo=FI41525%2F22&R=270 | W40: Näytä tiedot
A41: ALKUVOIMAN TWO-FACE | B41: ALKUVOIMAN TWO-FACE44721 | C41: 160.8333368 | D41: =AVERAGE(IF(H$1:PP$1="Pisteet",H41:PP41)) -> 80.41666841 | E41: Jämin Syyskisa | F41: Milla Gröndahl | G41: DR4 | H41: 160.8333368 | I41: Ei | J41: Kyllä | Q41: 2022-06-09 | R41: uros | S41: 25 | T41: siperianhusky | U41: Sukutaulu | V41: https://jalostus.kennelliitto.fi/frmKoira.aspx?RekNo=FI41527%2F22&R=270 | W41: Näytä tiedot
A42: Fun racing Jagger | B42: Fun racing Jagger43243 | C42: 156.1923713 | D42: =AVERAGE(IF(H$1:PP$1="Pisteet",H42:PP42)) -> 78.09618564 | E42: Jämin Syyskisa | F42: Ilona Suutari | G42: DS2 | H42: 156.1923713 | I42: Kyllä | J42: Kyllä | Q42: 2018-05-23 | R42: uros | S42: 24 | T42: x | U42: Sukutaulu | V42: https://www.trekkhundregisteret.no/dog/68271-jagger-unknown-breeder/ | W42: Näytä tiedot
A43: Särmä | B43: Särmä44798 | C43: 156.1923713 | D43: =AVERAGE(IF(H$1:PP$1="Pisteet",H43:PP43)) -> 78.09618564 | E43: Jämin Syyskisa | F43: Ilona Suutari | G43: DS2 | H43: 156.1923713 | I43: Kyllä | J43: Kyllä | Q43: 2022-08-25 | R43: uros | S43: 26 | T43: x | U43: Sukutaulu | V43: https://www.trekkhundregisteret.no/dog/65963-sarma-sonja-pasi-heinonen/ | W43: Näytä tiedot
A44: Soul’n Mate Xxl | B44: Soul’n Mate Xxl43546 | C44: 146.8461479 | D44: =AVERAGE(IF(H$1:PP$1="Pisteet",H44:PP44)) -> 73.42307393 | E44: Jämin Syyskisa | F44: Kirsi Järvenpää | G44: DR4 | H44: 146.8461479 | I44: Kyllä | J44: Kyllä | Q44: 2019-03-22 | R44: uros | S44: 26.5 | T44: siperianhusky | U44: Sukutaulu | V44: https://jalostus.kennelliitto.fi/frmKoira.aspx?RekNo=FI29877/19 | W44: Näytä tiedot
A45: Wintry Hulivili | B45: Wintry Hulivili44483 | C45: 146.8461479 | D45: =AVERAGE(IF(H$1:PP$1="Pisteet",H45:PP45)) -> 73.42307393 | E45: Jämin Syyskisa | F45: Kirsi Järvenpää | G45: DR4 | H45: 146.8461479 | I45: Ei | J45: Kyllä | Q45: 2021-10-14 | R45: uros | S45: 26 | T45: siperianhusky | U45: Sukutaulu | V45: https://jalostus.kennelliitto.fi/frmKoira.aspx?RekNo=FI61676/21 | W45: Näytä tiedot
A46: Kielonkukan Rosemary | B46: Kielonkukan Rosemary43978 | C46: 145.5656994 | D46: =AVERAGE(IF(H$1:PP$1="Pisteet",H46:PP46)) -> 72.78284968 | E46: Jämin Syyskisa | F46: Elisa Tuisku | G46: DR4 | H46: 145.5656994 | I46: Kyllä | J46: Kyllä | Q46: 2020-05-27 | R46: narttu | S46: 19.5 | T46: siperianhusky | U46: Sukutaulu | V46: https://jalostus.kennelliitto.fi/frmKoira.aspx?RekNo=FI34502/20&R=270 | W46: Näytä tiedot
A47: Lumikirsun Fantsu Fiona | B47: Lumikirsun Fantsu Fiona45158 | C47: 145.5656994 | D47: =AVERAGE(IF(H$1:PP$1="Pisteet",H47:PP47)) -> 72.78284968 | E47: Jämin Syyskisa | F47: Elisa Tuisku | G47: DR4 | H47: 145.5656994 | I47: Kyllä | J47: Kyllä | Q47: 2023-08-20 | R47: narttu | S47: 17.5 | T47: siperianhusky | U47: Sukutaulu | V47: https://jalostus.kennelliitto.fi/frmKoira.aspx?RekNo=FI44120/23&R=270 | W47: Näytä tiedot
A48: Lumikirsun Fantsu Fredi | B48: Lumikirsun Fantsu Fredi45158 | C48: 145.5656994 | D48: =AVERAGE(IF(H$1:PP$1="Pisteet",H48:PP48)) -> 72.78284968 | E48: Jämin Syyskisa | F48: Elisa Tuisku | G48: DR4 | H48: 145.5656994 | I48: Ei | J48: Kyllä | Q48: 2023-08-20 | R48: uros | S48: 19.5 | T48: siperianhusky | U48: Sukutaulu | V48: https://jalostus.kennelliitto.fi/frmKoira.aspx?RekNo=FI44123%2F23&R=270 | W48: Näytä tiedot
A49: Skyline Creak's Endless Echo | B49: Skyline Creak's Endless Echo44032 | C49: 145.5656994 | D49: =AVERAGE(IF(H$1:PP$1="Pisteet",H49:PP49)) -> 72.78284968 | E49: Jämin Syyskisa | F49: Elisa Tuisku | G49: DR4 | H49: 145.5656994 | I49: Ei | J49: Kyllä | Q49: 2020-07-20 | R49: uros | S49: 23 | T49: siperianhusky | U49: Sukutaulu | V49: https://jalostus.kennelliitto.fi/frmKoira.aspx?RekNo=FI43156/20&R=270 | W49: Näytä tiedot
A50: My Flaming Dreamaker | B50: My Flaming Dreamaker43943 | C50: 142.3335884 | D50: =AVERAGE(IF(H$1:PP$1="Pisteet",H50:PP50)) -> 71.1667942 | E50: Jämin Syyskisa | F50: Sini Riihelä | G50: DR4 | H50: 142.3335884 | I50: Kyllä | J50: Kyllä | Q50: 2020-04-22 | R50: narttu | S50: 18 | T50: siperianhusky | U50: Sukutaulu | V50: https://jalostus.kennelliitto.fi/frmKoira.aspx?RekNo=FI31859/20&R=270 | W50: Näytä tiedot
A51: My Flaming Dreamtale | B51: My Flaming Dreamtale43943 | C51: 142.3335884 | D51: =AVERAGE(IF(H$1:PP$1="Pisteet",H51:PP51)) -> 71.1667942 | E51: Jämin Syyskisa | F51: Sini Riihelä | G51: DR4 | H51: 142.3335884 | I51: Ei | J51: Kyllä | Q51: 2020-04-22 | R51: uros | S51: 22 | T51: siperianhusky | U51: Sukutaulu | V51: https://jalostus.kennelliitto.fi/frmKoira.aspx?RekNo=FI31858%2F20&R=270 | W51: Näytä tiedot
A52: My Flaming Powerpuff Blossom | B52: My Flaming Powerpuff Blossom44195 | C52: 142.3335884 | D52: =AVERAGE(IF(H$1:PP$1="Pisteet",H52:PP52)) -> 71.1667942 | E52: Jämin Syyskisa | F52: Sini Riihelä | G52: DR4 | H52: 142.3335884 | I52: Kyllä | J52: Kyllä | Q52: 2020-12-30 | R52: narttu | S52: 17 | T52: siperianhusky | U52: Sukutaulu | V52: https://jalostus.kennelliitto.fi/frmKoira.aspx?RekNo=FI16062/21&R=270 | W52: Näytä tiedot
A53: My Flaming Rebel At Heart | B53: My Flaming Rebel At Heart44715 | C53: 142.3335884 | D53: =AVERAGE(IF(H$1:PP$1="Pisteet",H53:PP53)) -> 71.1667942 | E53: Jämin Syyskisa | F53: Sini Riihelä | G53: DR4 | H53: 142.3335884 | I53: Ei | J53: Kyllä | Q53: 2022-06-03 | R53: narttu | S53: 17 | T53: siperianhusky | U53: Sukutaulu | V53: https://jalostus.kennelliitto.fi/frmKoira.aspx?RekNo=FI39254/22&R=270 | W53: Näytä tiedot
A54: Lumiikisan Onnellinen Tytti | B54: Lumiikisan Onnellinen Tytti44132 | C54: 134.9547309 | D54: =AVERAGE(IF(H$1:PP$1="Pisteet",H54:PP54)) -> 67.47736546 | K54: Jämin Syys-SM | L54: Camilla Backman-Koskinen | M54: DS2 | N54: 134.9547309 | O54: Kyllä | P54: Kyllä | Q54: 2020-10-28 | R54: narttu | S54: 25 | T54: siperianhusky | U54: Sukutaulu | V54: https://jalostus.kennelliitto.fi/frmKoira.aspx?RekNo=FI10983%2F21&R=270 | W54: Näytä tiedot
A55: Kivijärven Alma | B55: Kivijärven Alma43423 | C55: 130.5712274 | D55: =AVERAGE(IF(H$1:PP$1="Pisteet",H55:PP55)) -> 65.28561368 | K55: Jämin Syys-SM | L55: Ville Väänänen | M55: DS2 | N55: 130.5712274 | O55: Kyllä | P55: Kyllä | Q55: 2018-11-19 | R55: narttu | S55: 22 | T55: siperianhusky | U55: Sukutaulu | V55: https://jalostus.kennelliitto.fi/frmKoira.aspx?RekNo=FI12754/19&R=270 | W55: Näytä tiedot
A56: Ritarinkannus | B56: Ritarinkannus43820 | C56: 130.5712274 | D56: =AVERAGE(IF(H$1:PP$1="Pisteet",H56:PP56)) -> 65.28561368 | K56: Jämin Syys-SM | L56: Ville Väänänen | M56: DS2 | N56: 130.5712274 | O56: Kyllä | P56: Kyllä | Q56: 2019-12-21 | R56: uros | S56: 23 | T56: siperianhusky | U56: Sukutaulu | V56: https://jalostus.kennelliitto.fi/frmKoira.aspx?RekNo=EJ17119/20&R=270 | W56: Näytä tiedot
A57: Lumikiisan Mahtava Nova | B57: Lumikiisan Mahtava Nova43668 | C57: 124.6910999 | D57: =AVERAGE(IF(H$1:PP$1="Pisteet",H57:PP57)) -> 62.34554993 | E57: Jämin Syyskisa | F57: Camilla Backman-Koskinen | G57: DS2 | H57: 124.6910999 | I57: Kyllä | J57: Kyllä | Q57: 2019-07-22 | R57: narttu | S57: 22 | T57: siperianhusky | U57: Sukutaulu | V57: https://jalostus.kennelliitto.fi/frmKoira.aspx?RekNo=FI48042/19&R=270 | W57: Näytä tiedot
A58: Tomorrow's Fighter Blossom | B58: Tomorrow's Fighter Blossom44516 | C58: 104.2209984 | D58: =AVERAGE(IF(H$1:PP$1="Pisteet",H58:PP58)) -> 52.1104992 | E58: Jämin Syyskisa | F58: Iira Rantametsä | G58: DS2 | H58: 104.2209984 | I58: Kyllä | J58: Kyllä | Q58: 2021-11-16 | R58: narttu | S58: 20 | T58: siperianhusky | U58: Sukutaulu | V58: https://jalostus.kennelliitto.fi/frmKoira.aspx?RekNo=FI10475%2F22&R=270 | W58: Näytä tiedot
A59: ATACIARA MENNINKÄINEN | B59: ATACIARA MENNINKÄINEN44326 | C59: 102.9555261 | D59: =AVERAGE(IF(H$1:PP$1="Pisteet",H59:PP59)) -> 51.47776307 | E59: Jämin Syyskisa | F59: Ilpo Hacklin | G59: DS2 | H59: 102.9555261 | I59: Kyllä | J59: Kyllä | Q59: 2021-05-10 | R59: uros | S59: 42 | T59: alaskanmalamuutti | U59: Sukutaulu | V59: https://jalostus.kennelliitto.fi/frmKoira.aspx?RekNo=FI34374%2F21&R=243 | W59: Näytä tiedot
A60: FROZEN EAR FINAL CHANCE | B60: FROZEN EAR FINAL CHANCE45107 | C60: 102.9555261 | D60: =AVERAGE(IF(H$1:PP$1="Pisteet",H60:PP60)) -> 51.47776307 | E60: Jämin Syyskisa | F60: Ilpo Hacklin | G60: DS2 | H60: 102.9555261 | I60: Kyllä | J60: Kyllä | Q60: 2023-06-30 | R60: uros | S60: 40 | T60: alaskanmalamuutti | U60: Sukutaulu | V60: https://jalostus.kennelliitto.fi/frmKoira.aspx?RekNo=FI38136%2F23&R=243 | W60: Näytä tiedot
A61: ABSOLUTELY SILVER | B61: ABSOLUTELY SILVER44750 | C61: 101.0635018 | D61: =AVERAGE(IF(H$1:PP$1="Pisteet",H61:PP61)) -> 50.53175092 | K61: Jämin Syys-SM | L61: Wilma Hänninen | M61: DS2 | N61: 101.0635018 | O61: Kyllä | P61: Kyllä | Q61: 2022-07-08 | R61: narttu | S61: 19 | T61: jakutianlaika | U61: Sukutaulu | V61: https://jalostus.kennelliitto.fi/frmKoira.aspx?RekNo=FI28674/23&R=365 | W61: Näytä tiedot
A62: ARTIC TRAVEL BRONZITE | B62: ARTIC TRAVEL BRONZITE44004 | C62: 101.0635018 | D62: =AVERAGE(IF(H$1:PP$1="Pisteet",H62:PP62)) -> 50.53175092 | K62: Jämin Syys-SM | L62: Wilma Hänninen | M62: DS2 | N62: 101.0635018 | O62: Kyllä | P62: Kyllä | Q62: 2020-06-22 | R62: narttu | S62: 19 | T62: jakutianlaika | U62: Sukutaulu | V62: https://jalostus.kennelliitto.fi/frmKoira.aspx?RekNo=FI19536%2F22&R=365 | W62: Näytä tiedot
A63: Kulkijan mahtava malla | B63: Kulkijan mahtava malla44392 | C63: 99.10277847 | D63: =AVERAGE(IF(H$1:PP$1="Pisteet",H63:PP63)) -> 49.55138923 | E63: Jämin Syyskisa | F63: Rhianon Rintamäki | G63: DS2 | H63: 99.10277847 | I63: Kyllä | J63: Kyllä | Q63: 2021-07-15 | R63: narttu | S63: 21 | T63: jakutianlaika | U63: Sukutaulu | V63: https://jalostus.kennelliitto.fi/frmKoira.aspx?RekNo=FI53763%2F21&R=365 | W63: Näytä tiedot
A64: Slavinja saga | B64: Slavinja saga45249 | C64: 99.10277847 | D64: =AVERAGE(IF(H$1:PP$1="Pisteet",H64:PP64)) -> 49.55138923 | E64: Jämin Syyskisa | F64: Rhianon Rintamäki | G64: DS2 | H64: 99.10277847 | I64: Ei | J64: Kyllä | Q64: 2023-11-19 | R64: narttu | S64: 17 | T64: jakutianlaika | U64: Sukutaulu | V64: https://jalostus.kennelliitto.fi/frmKoira.aspx?RekNo=FI19165%2F25&R=365 | W64: Näytä tiedot
